[Event "*** Titled Tuesday Blitz"]
[Site "Chess.com"]
[Date "2018.10.02"]
[Round "2"]
[White "ajkom197"]
[Black "Supernotar"]
[Result "1-0"]
[WhiteElo "2392"]
[BlackElo "2424"]
[TimeControl "180+2"]
[EndTime "13:18:55 PDT"]
[Termination "ajkom197 won by resignation"]

1. c4 {[%clk 0:03:01.9]} 1... c5 {[%clk 0:03:00.6]} 2. g3 {[%clk 0:03:01.6]}
2... Nc6 {[%clk 0:03:01.5]} 3. Bg2 {[%clk 0:03:03.2]} 3... g6 {[%clk 0:03:02.5]}
4. e3 {[%clk 0:03:03.9]} 4... Bg7 {[%clk 0:03:03.4]} 5. Ne2 {[%clk 0:03:05.5]}
5... e6 {[%clk 0:03:04.1]} 6. O-O {[%clk 0:03:06.3]} 6... Nge7 {[%clk
0:03:04.8]} 7. Nbc3 {[%clk 0:03:07.3]} 7... O-O {[%clk 0:03:05.3]} 8. d4 {[%clk
0:03:07.8]} 8... cxd4 {[%clk 0:03:06.4]} 9. Nxd4 {[%clk 0:03:07.8]} 9... Nxd4
{[%clk 0:03:07.3]} 10. exd4 {[%clk 0:03:08.4]} 10... d5 {[%clk 0:03:08.5]} 11.
cxd5 {[%clk 0:03:09.7]} 11... Nxd5 {[%clk 0:03:09.2]} 12. Nxd5 {[%clk
0:03:10.9]} 12... exd5 {[%clk 0:03:10.3]} 13. Be3 {[%clk 0:03:12.5]} 13... Be6
{[%clk 0:03:10.9]} 14. Qb3 {[%clk 0:03:13.1]} 14... Qb6 {[%clk 0:03:10.6]} 15.
Qxb6 {[%clk 0:03:12.9]} 15... axb6 {[%clk 0:03:11.7]} 16. a3 {[%clk 0:03:13.4]}
16... Rfc8 {[%clk 0:03:12.6]} 17. Rfc1 {[%clk 0:03:12.7]} 17... Kf8 {[%clk
0:03:12.7]} 18. h4 {[%clk 0:03:11.2]} 18... h5 {[%clk 0:03:13.1]} 19. Bf1 {[%clk
0:03:10.4]} 19... Ke7 {[%clk 0:03:09.6]} 20. Bd3 {[%clk 0:03:09.3]} 20... Rxc1+
{[%clk 0:03:09.5]} 21. Rxc1 {[%clk 0:03:09.7]} 21... Rc8 {[%clk 0:03:11.4]} 22.
Rxc8 {[%clk 0:03:10.5]} 22... Bxc8 {[%clk 0:03:13.1]} 23. Kf1 {[%clk 0:03:11.9]}
23... Bg4 {[%clk 0:03:10.5]} 24. Ke1 {[%clk 0:03:09.7]} 24... Bf3 {[%clk
0:03:10.7]} 25. Kd2 {[%clk 0:03:10.5]} 25... Ke6 {[%clk 0:03:09.9]} 26. Bb5
{[%clk 0:03:07.9]} 26... Bf6 {[%clk 0:03:07.2]} 27. Bd3 {[%clk 0:02:58.4]} 27...
Bg7 {[%clk 0:03:03.9]} 28. Kc3 {[%clk 0:02:56.5]} 28... Bf8 {[%clk 0:03:00.2]}
29. Kb3 {[%clk 0:02:51.3]} 29... Bd6 {[%clk 0:02:56.9]} 30. Bg5 {[%clk
0:02:42.4]} 30... Bd1+ {[%clk 0:02:56.1]} 31. Kc3 {[%clk 0:02:42.6]} 31... f6
{[%clk 0:02:49.5]} 32. Bf4 {[%clk 0:02:38.4]} 32... Bxf4 {[%clk 0:02:29.9]} 33.
gxf4 {[%clk 0:02:38.4]} 33... f5 {[%clk 0:02:31.4]} 34. Bb5 {[%clk 0:02:30.7]}
34... Ke7 {[%clk 0:02:31.6]} 35. Kb4 {[%clk 0:02:31]} 35... Bf3 {[%clk 0:02:27]}
36. a4 {[%clk 0:02:31.2]} 36... Be4 {[%clk 0:02:15.3]} 37. a5 {[%clk 0:02:29.5]}
37... bxa5+ {[%clk 0:01:58.2]} 38. Kxa5 {[%clk 0:02:31.4]} 38... Kd8 {[%clk
0:01:57]} 39. Kb6 {[%clk 0:02:31.8]} 39... Kc8 {[%clk 0:01:58.5]} 40. Be8 {[%clk
0:02:29.1]} 40... Bf3 {[%clk 0:01:57.5]} 41. Bxg6 {[%clk 0:02:29.6]} 41... Bg4
{[%clk 0:01:59.1]} 42. Bf7 {[%clk 0:02:30.6]} 42... Bf3 {[%clk 0:01:59.7]} 43.
Be6+ {[%clk 0:02:31.8]} 1-0

[Event "*** Titled Tuesday Blitz"]
[Site "Chess.com"]
[Date "2018.10.02"]
[Round "2"]
[White "MITerryble"]
[Black "plouarzel"]
[Result "1-0"]
[WhiteElo "2773"]
[BlackElo "2595"]
[TimeControl "180+2"]
[EndTime "13:19:57 PDT"]
[Termination "MITerryble won by resignation"]

1. d4 {[%clk 0:03:01.9]} 1... d6 {[%clk 0:03:00.3]} 2. Nf3 {[%clk 0:03:00.3]}
2... Nf6 {[%clk 0:02:59.9]} 3. Bg5 {[%clk 0:03:00.3]} 3... Nbd7 {[%clk
0:03:00.1]} 4. Nc3 {[%clk 0:02:58.8]} 4... h6 {[%clk 0:03:01.4]} 5. Bh4 {[%clk
0:02:59.2]} 5... g5 {[%clk 0:02:59.9]} 6. Bg3 {[%clk 0:02:59.9]} 6... Bg7 {[%clk
0:02:59.2]} 7. e4 {[%clk 0:03:00.8]} 7... Nh5 {[%clk 0:03:00.8]} 8. Bc4 {[%clk
0:02:55.3]} 8... c6 {[%clk 0:02:59.5]} 9. a4 {[%clk 0:02:46.7]} 9... Qa5 {[%clk
0:03:00.2]} 10. O-O {[%clk 0:02:43.6]} 10... Nxg3 {[%clk 0:02:58.4]} 11. hxg3
{[%clk 0:02:42.7]} 11... e6 {[%clk 0:02:57.6]} 12. d5 {[%clk 0:02:42.6]} 12...
cxd5 {[%clk 0:02:45.9]} 13. exd5 {[%clk 0:02:43.6]} 13... e5 {[%clk 0:02:45.5]}
14. g4 {[%clk 0:02:30.3]} 14... Nf6 {[%clk 0:02:33]} 15. Bb5+ {[%clk 0:02:24.3]}
15... Ke7 {[%clk 0:02:34.3]} 16. Be2 {[%clk 0:02:22.7]} 16... Nxg4 {[%clk
0:02:18.1]} 17. Nd2 {[%clk 0:02:16.9]} 17... Nf6 {[%clk 0:02:08]} 18. Nc4 {[%clk
0:02:17.7]} 18... Qd8 {[%clk 0:02:08.9]} 19. Nb5 {[%clk 0:02:18.9]} 19... Ne8
{[%clk 0:02:08.7]} 20. Re1 {[%clk 0:01:41.6]} 20... a6 {[%clk 0:02:08.7]} 21.
Nc3 {[%clk 0:01:38.9]} 21... f5 {[%clk 0:02:06.3]} 22. a5 {[%clk 0:01:39.5]}
22... Kf7 {[%clk 0:01:58.6]} 23. Bh5+ {[%clk 0:01:38.4]} 23... Kf6 {[%clk
0:01:55.3]} 24. g4 {[%clk 0:01:38]} 24... Nc7 {[%clk 0:01:35.7]} 25. gxf5 {[%clk
0:01:36.6]} 25... Bxf5 {[%clk 0:01:37.2]} 26. Qf3 {[%clk 0:01:37.7]} 26... Rf8
{[%clk 0:01:29.9]} 27. Nxd6 {[%clk 0:01:35.7]} 27... Qd7 {[%clk 0:01:20.5]} 28.
Nxf5 {[%clk 0:01:24.5]} 28... Qxf5 {[%clk 0:01:09.8]} 29. Ne4+ {[%clk
0:01:25.4]} 29... Ke7 {[%clk 0:01:11.1]} 30. d6+ {[%clk 0:01:26.7]} 30... Ke6
{[%clk 0:01:12.7]} 31. Bg4 {[%clk 0:01:25.9]} 1-0

[Event "*** Titled Tuesday Blitz"]
[Site "Chess.com"]
[Date "2018.10.02"]
[Round "2"]
[White "ShimanovAlex"]
[Black "Aygehovit1992"]
[Result "0-1"]
[WhiteElo "2730"]
[BlackElo "2665"]
[TimeControl "180+2"]
[EndTime "13:20:24 PDT"]
[Termination "Aygehovit1992 won by resignation"]

1. e4 {[%clk 0:02:54.9]} 1... e5 {[%clk 0:02:59.6]} 2. Nf3 {[%clk 0:02:55.7]}
2... Nc6 {[%clk 0:02:59.9]} 3. Bc4 {[%clk 0:02:57.3]} 3... Bc5 {[%clk
0:03:00.3]} 4. c3 {[%clk 0:02:56.8]} 4... Nf6 {[%clk 0:03:00.6]} 5. d3 {[%clk
0:02:56.6]} 5... O-O {[%clk 0:02:59.1]} 6. Bg5 {[%clk 0:02:55.3]} 6... h6 {[%clk
0:02:59.6]} 7. Bh4 {[%clk 0:02:56.1]} 7... Be7 {[%clk 0:03:00.7]} 8. Nbd2 {[%clk
0:02:56.4]} 8... Nh5 {[%clk 0:02:54.1]} 9. g3 {[%clk 0:02:53.8]} 9... d6 {[%clk
0:02:50.7]} 10. a4 {[%clk 0:02:52.5]} 10... Nf6 {[%clk 0:02:42.9]} 11. Bxf6
{[%clk 0:02:53.4]} 11... Bxf6 {[%clk 0:02:43.7]} 12. h4 {[%clk 0:02:55]} 12...
Bg4 {[%clk 0:02:43]} 13. Qc2 {[%clk 0:02:49.4]} 13... a6 {[%clk 0:02:33.6]} 14.
Nh2 {[%clk 0:02:48.1]} 14... Bd7 {[%clk 0:02:23.6]} 15. Ndf1 {[%clk 0:02:44.1]}
15... b5 {[%clk 0:02:18.9]} 16. Bd5 {[%clk 0:02:39]} 16... Rb8 {[%clk
0:02:10.1]} 17. axb5 {[%clk 0:02:39.4]} 17... axb5 {[%clk 0:02:11.3]} 18. Ne3
{[%clk 0:02:40.6]} 18... b4 {[%clk 0:02:05.4]} 19. Nhg4 {[%clk 0:02:40.3]} 19...
bxc3 {[%clk 0:02:05.3]} 20. bxc3 {[%clk 0:02:41.2]} 20... h5 {[%clk 0:01:54.4]}
21. Nxf6+ {[%clk 0:02:37]} 21... Qxf6 {[%clk 0:01:56.3]} 22. O-O {[%clk
0:02:38.4]} 22... Rb6 {[%clk 0:01:40.8]} 23. f4 {[%clk 0:02:26.8]} 23... Qg6
{[%clk 0:01:20.8]} 24. Kh2 {[%clk 0:02:27.5]} 24... Rfb8 {[%clk 0:01:20.7]} 25.
Ra2 {[%clk 0:02:28.3]} 25... exf4 {[%clk 0:01:15]} 26. Rxf4 {[%clk 0:02:28.8]}
26... Be6 {[%clk 0:01:13.1]} 27. Nc4 {[%clk 0:02:11.9]} 27... Bxd5 {[%clk
0:00:45.7]} 28. exd5 {[%clk 0:02:12.7]} 28... Ne5 {[%clk 0:00:46.6]} 29. Nxb6
{[%clk 0:02:13.8]} 29... Rxb6 {[%clk 0:00:47.1]} 30. d4 {[%clk 0:01:57.5]} 30...
Ng4+ {[%clk 0:00:44.1]} 31. Kh3 {[%clk 0:01:58.1]} 31... Qxc2 {[%clk 0:00:26.5]}
32. Rxc2 {[%clk 0:02:00]} 32... Rb1 {[%clk 0:00:27.8]} 33. Rf3 {[%clk
0:01:56.1]} 33... Rh1+ {[%clk 0:00:26.7]} 0-1

[Event "*** Titled Tuesday Blitz"]
[Site "Chess.com"]
[Date "2018.10.02"]
[Round "2"]
[White "Gubajdullin"]
[Black "gmcorrales"]
[Result "1-0"]
[WhiteElo "2361"]
[BlackElo "2690"]
[TimeControl "180+2"]
[EndTime "13:20:28 PDT"]
[Termination "Gubajdullin won on time"]

1. d4 {[%clk 0:03:01.9]} 1... Nf6 {[%clk 0:03:00.1]} 2. Bf4 {[%clk 0:03:02.2]}
2... d5 {[%clk 0:02:57.4]} 3. e3 {[%clk 0:03:02.2]} 3... c5 {[%clk 0:02:58.5]}
4. c3 {[%clk 0:03:01.8]} 4... Qb6 {[%clk 0:02:56.9]} 5. Qb3 {[%clk 0:03:01.8]}
5... c4 {[%clk 0:02:56.7]} 6. Qc2 {[%clk 0:03:02.2]} 6... Nh5 {[%clk 0:02:52.3]}
7. Be5 {[%clk 0:02:56.9]} 7... f6 {[%clk 0:02:53.1]} 8. Bg3 {[%clk 0:02:57.4]}
8... g6 {[%clk 0:02:48.7]} 9. Nd2 {[%clk 0:02:54.6]} 9... Bf5 {[%clk 0:02:48.8]}
10. e4 {[%clk 0:02:53.8]} 10... dxe4 {[%clk 0:02:49.7]} 11. Nxc4 {[%clk
0:02:53]} 11... Qd8 {[%clk 0:02:49.8]} 12. Ne3 {[%clk 0:02:52.5]} 12... Nxg3
{[%clk 0:02:42.5]} 13. hxg3 {[%clk 0:02:52.5]} 13... Nc6 {[%clk 0:02:42.3]} 14.
g4 {[%clk 0:02:52.6]} 14... Bd7 {[%clk 0:02:39.5]} 15. Qxe4 {[%clk 0:02:47.8]}
15... Bg7 {[%clk 0:02:36.6]} 16. Bc4 {[%clk 0:02:47.9]} 16... Qb6 {[%clk
0:02:22.8]} 17. Rxh7 {[%clk 0:02:45.7]} 17... Qxb2 {[%clk 0:02:15.8]} 18. Qxg6+
{[%clk 0:02:30.7]} 18... Kd8 {[%clk 0:02:16.1]} 19. Rb1 {[%clk 0:02:04.3]} 19...
Qxc3+ {[%clk 0:02:11.5]} 20. Kf1 {[%clk 0:02:05.1]} 20... Rxh7 {[%clk
0:01:36.2]} 21. Qxh7 {[%clk 0:02:05]} 21... Bf8 {[%clk 0:01:37.2]} 22. Qg8
{[%clk 0:02:04.6]} 22... Rc8 {[%clk 0:00:27]} 23. Qxf8+ {[%clk 0:02:00.2]} 23...
Be8 {[%clk 0:00:27.9]} 24. Ne2 {[%clk 0:01:57.2]} 24... Qd2 {[%clk 0:00:27.8]}
25. Bf7 {[%clk 0:01:50.1]} 25... Kd7 {[%clk 0:00:27.3]} 26. Rxb7+ {[%clk
0:01:46.3]} 1-0

[Event "*** Titled Tuesday Blitz"]
[Site "Chess.com"]
[Date "2018.10.02"]
[Round "2"]
[White "Blitzstream"]
[Black "Sychev_Klementy"]
[Result "1-0"]
[WhiteElo "2615"]
[BlackElo "2774"]
[TimeControl "180+2"]
[EndTime "13:20:37 PDT"]
[Termination "Blitzstream won by resignation"]

1. d4 {[%clk 0:03:01.9]} 1... Nf6 {[%clk 0:03:00.2]} 2. Bg5 {[%clk 0:03:01.7]}
2... c5 {[%clk 0:03:00.2]} 3. Bxf6 {[%clk 0:03:02.2]} 3... gxf6 {[%clk
0:03:00.7]} 4. d5 {[%clk 0:03:03.5]} 4... Qb6 {[%clk 0:03:01.7]} 5. Qc1 {[%clk
0:03:04.4]} 5... f5 {[%clk 0:03:03]} 6. c4 {[%clk 0:03:04.2]} 6... Bh6 {[%clk
0:02:58.2]} 7. e3 {[%clk 0:03:04.7]} 7... f4 {[%clk 0:02:49.7]} 8. exf4 {[%clk
0:03:06.6]} 8... Bxf4 {[%clk 0:02:46.6]} 9. Qxf4 {[%clk 0:03:08.5]} 9... Qxb2
{[%clk 0:02:47.4]} 10. Ne2 {[%clk 0:03:09.2]} 10... Qxa1 {[%clk 0:02:47.1]} 11.
Nc3 {[%clk 0:03:10.6]} 11... Qb2 {[%clk 0:02:45.1]} 12. d6 {[%clk 0:03:08]}
12... Nc6 {[%clk 0:02:41.7]} 13. Bd3 {[%clk 0:02:50.9]} 13... Nb4 {[%clk
0:02:27.5]} 14. Be4 {[%clk 0:02:29.5]} 14... Nc2+ {[%clk 0:01:10.4]} 15. Bxc2
{[%clk 0:02:30.2]} 15... Qxc2 {[%clk 0:01:10]} 16. O-O {[%clk 0:02:27]} 16...
Qg6 {[%clk 0:01:02.1]} 17. Nd5 {[%clk 0:02:11.3]} 17... Qxd6 {[%clk 0:00:57.7]}
18. Qg5 {[%clk 0:01:50.5]} 18... b6 {[%clk 0:00:18.1]} 19. Re1 {[%clk
0:01:35.1]} 19... e6 {[%clk 0:00:14.7]} 20. Nbc3 {[%clk 0:01:25]} 20... Bb7
{[%clk 0:00:14.2]} 21. Nb5 {[%clk 0:01:25.9]} 21... Rg8 {[%clk 0:00:03.6]} 22.
Nxd6+ {[%clk 0:01:21.4]} 22... Kf8 {[%clk 0:00:04.3]} 23. Qh6+ {[%clk
0:01:22.2]} 1-0

[Event "*** Titled Tuesday Blitz"]
[Site "Chess.com"]
[Date "2018.10.02"]
[Round "2"]
[White "xamax2000"]
[Black "kleinebeer98"]
[Result "1-0"]
[WhiteElo "2474"]
[BlackElo "2517"]
[TimeControl "180+2"]
[EndTime "13:20:38 PDT"]
[Termination "xamax2000 won by resignation"]

1. e4 {[%clk 0:03:01.9]} 1... d5 {[%clk 0:02:48.7]} 2. exd5 {[%clk 0:03:02.2]}
2... Qxd5 {[%clk 0:02:47.6]} 3. Nc3 {[%clk 0:03:00.2]} 3... Qa5 {[%clk
0:02:48.5]} 4. d4 {[%clk 0:03:01.6]} 4... Nf6 {[%clk 0:02:47.7]} 5. Bd2 {[%clk
0:03:02.7]} 5... Bg4 {[%clk 0:02:47.7]} 6. f3 {[%clk 0:03:03.3]} 6... Bf5 {[%clk
0:02:46.9]} 7. Bc4 {[%clk 0:03:04.4]} 7... c6 {[%clk 0:02:45]} 8. Nge2 {[%clk
0:02:55.5]} 8... e6 {[%clk 0:02:41.8]} 9. g4 {[%clk 0:02:53.1]} 9... Bg6 {[%clk
0:02:39.6]} 10. h4 {[%clk 0:02:54.2]} 10... h6 {[%clk 0:02:34.1]} 11. Nf4 {[%clk
0:02:55]} 11... Bh7 {[%clk 0:02:35]} 12. Qe2 {[%clk 0:02:55.5]} 12... Nbd7
{[%clk 0:02:31]} 13. g5 {[%clk 0:02:01.4]} 13... hxg5 {[%clk 0:02:15.2]} 14.
hxg5 {[%clk 0:02:03.3]} 14... Qxg5 {[%clk 0:02:17.1]} 15. O-O-O {[%clk
0:02:02.3]} 15... O-O-O {[%clk 0:02:13.8]} 16. Nxe6 {[%clk 0:01:57.2]} 16... Qf5
{[%clk 0:02:13]} 17. Rxh7 {[%clk 0:01:58.1]} 17... Rxh7 {[%clk 0:01:52.5]} 18.
Nxd8 {[%clk 0:01:59.2]} 18... Kxd8 {[%clk 0:01:54.4]} 19. Bd3 {[%clk 0:01:57]}
19... Qh5 {[%clk 0:01:51.5]} 20. Bxh7 {[%clk 0:01:57.4]} 20... Qxh7 {[%clk
0:01:53.4]} 21. Bg5 {[%clk 0:01:55.4]} 21... Qf5 {[%clk 0:01:51]} 22. Ne4 {[%clk
0:01:53.5]} 22... Be7 {[%clk 0:01:50.1]} 23. Bxf6 {[%clk 0:01:53.3]} 23... Nxf6
{[%clk 0:01:49.7]} 24. Nxf6 {[%clk 0:01:52.8]} 24... Bxf6 {[%clk 0:01:51.6]} 25.
Kb1 {[%clk 0:01:52.1]} 25... Kc7 {[%clk 0:01:46.9]} 26. Qe4 {[%clk 0:01:51.3]}
26... Qh5 {[%clk 0:01:38.3]} 27. a3 {[%clk 0:01:44.6]} 27... a5 {[%clk
0:01:37.8]} 28. d5 {[%clk 0:01:42.8]} 28... cxd5 {[%clk 0:01:39.1]} 29. Rxd5
{[%clk 0:01:41.6]} 29... Qh1+ {[%clk 0:01:40.3]} 30. Ka2 {[%clk 0:01:42.7]}
30... Qc1 {[%clk 0:01:37.9]} 31. Rb5 {[%clk 0:01:05.7]} 31... b6 {[%clk
0:01:30]} 32. Qc4+ {[%clk 0:01:06.4]} 32... Kb7 {[%clk 0:01:27.1]} 33. Qxf7+
{[%clk 0:01:07.4]} 33... Ka6 {[%clk 0:01:27.1]} 34. Qc4 {[%clk 0:01:07.7]} 1-0

[Event "*** Titled Tuesday Blitz"]
[Site "Chess.com"]
[Date "2018.10.02"]
[Round "2"]
[White "BasilSmash"]
[Black "Mr_Penings"]
[Result "0-1"]
[WhiteElo "2398"]
[BlackElo "2526"]
[TimeControl "180+2"]
[EndTime "13:20:58 PDT"]
[Termination "Mr_Penings won by resignation"]

1. d4 {[%clk 0:02:59.4]} 1... Nf6 {[%clk 0:02:59]} 2. Bf4 {[%clk 0:02:59.5]}
2... g6 {[%clk 0:02:59.8]} 3. Nc3 {[%clk 0:02:59.8]} 3... Bg7 {[%clk 0:02:57.1]}
4. e4 {[%clk 0:02:59.1]} 4... O-O {[%clk 0:02:58.4]} 5. Qd2 {[%clk 0:02:59.8]}
5... d6 {[%clk 0:02:59.7]} 6. O-O-O {[%clk 0:03:00.3]} 6... Nc6 {[%clk
0:02:57.1]} 7. Bh6 {[%clk 0:02:55]} 7... e5 {[%clk 0:02:53.7]} 8. d5 {[%clk
0:02:52.7]} 8... Ne7 {[%clk 0:02:42.1]} 9. f3 {[%clk 0:02:51.1]} 9... Bd7 {[%clk
0:02:28.9]} 10. g4 {[%clk 0:02:50.6]} 10... Qb8 {[%clk 0:02:21.6]} 11. h4 {[%clk
0:02:47.2]} 11... b5 {[%clk 0:02:21.6]} 12. h5 {[%clk 0:02:46]} 12... b4 {[%clk
0:02:22.7]} 13. Nce2 {[%clk 0:02:46.7]} 13... Rc8 {[%clk 0:01:51.1]} 14. Ng3
{[%clk 0:02:46.3]} 14... c6 {[%clk 0:01:39.5]} 15. Bxg7 {[%clk 0:02:30.3]} 15...
Kxg7 {[%clk 0:01:40.6]} 16. hxg6 {[%clk 0:02:27.9]} 16... fxg6 {[%clk
0:01:42.5]} 17. Qh6+ {[%clk 0:02:16.9]} 17... Kf7 {[%clk 0:01:43.4]} 18. g5
{[%clk 0:02:17.2]} 18... Ne8 {[%clk 0:01:43.8]} 19. Qxh7+ {[%clk 0:02:09.9]}
19... Ng7 {[%clk 0:01:44.7]} 20. Bc4 {[%clk 0:01:59]} 20... cxd5 {[%clk
0:01:35.7]} 21. Bxd5+ {[%clk 0:02:00.9]} 21... Nxd5 {[%clk 0:01:36.6]} 22. Rxd5
{[%clk 0:01:58.6]} 22... b3 {[%clk 0:01:36.6]} 23. axb3 {[%clk 0:01:50.2]} 23...
Qxb3 {[%clk 0:01:32.9]} 24. Qh2 {[%clk 0:01:29]} 24... Rab8 {[%clk 0:01:22.8]}
25. c3 {[%clk 0:01:19.5]} 25... Ba4 {[%clk 0:00:57.5]} 26. Qd2 {[%clk
0:00:53.9]} 26... Qa2 {[%clk 0:00:58.1]} 0-1

[Event "*** Titled Tuesday Blitz"]
[Site "Chess.com"]
[Date "2018.10.02"]
[Round "2"]
[White "TastyFrenchFries"]
[Black "Eliwood44"]
[Result "1-0"]
[WhiteElo "2397"]
[BlackElo "2188"]
[TimeControl "180+2"]
[EndTime "13:21:01 PDT"]
[Termination "TastyFrenchFries won by resignation"]

1. Na3 {[%clk 0:02:53.4]} 1... Nf6 {[%clk 0:02:57.7]} 2. Nh3 {[%clk 0:02:52.9]}
2... d5 {[%clk 0:02:55.1]} 3. g3 {[%clk 0:02:53.1]} 3... e5 {[%clk 0:02:50.5]}
4. Bg2 {[%clk 0:02:50.4]} 4... Be6 {[%clk 0:02:43.4]} 5. c3 {[%clk 0:02:50.9]}
5... h6 {[%clk 0:02:42.1]} 6. d4 {[%clk 0:02:49.7]} 6... exd4 {[%clk 0:02:38.4]}
7. cxd4 {[%clk 0:02:47.1]} 7... c6 {[%clk 0:02:37]} 8. O-O {[%clk 0:02:42.5]}
8... Be7 {[%clk 0:02:32.2]} 9. Nf4 {[%clk 0:02:41.1]} 9... Bf5 {[%clk
0:02:32.4]} 10. Nc2 {[%clk 0:02:37.9]} 10... O-O {[%clk 0:02:27.8]} 11. Ne3
{[%clk 0:02:34.9]} 11... Bh7 {[%clk 0:02:22.6]} 12. a3 {[%clk 0:02:34.6]} 12...
a5 {[%clk 0:02:22.1]} 13. Qb3 {[%clk 0:02:33.1]} 13... Ra7 {[%clk 0:02:10.8]}
14. f3 {[%clk 0:02:14.5]} 14... Bd6 {[%clk 0:02:06.6]} 15. Bd2 {[%clk
0:02:08.8]} 15... Bxf4 {[%clk 0:02:05.9]} 16. gxf4 {[%clk 0:02:08.1]} 16... Re8
{[%clk 0:02:03.1]} 17. Rf2 {[%clk 0:02:01.9]} 17... Nbd7 {[%clk 0:02:02.5]} 18.
Bh3 {[%clk 0:02:01]} 18... Nf8 {[%clk 0:02:02.3]} 19. Nf5 {[%clk 0:01:58.8]}
19... Ne6 {[%clk 0:01:58.8]} 20. e3 {[%clk 0:01:56.6]} 20... Bxf5 {[%clk
0:01:46]} 21. Bxf5 {[%clk 0:01:56.6]} 21... Qe7 {[%clk 0:01:31.6]} 22. Kh1
{[%clk 0:01:55.1]} 22... Nf8 {[%clk 0:01:23.9]} 23. Rg1 {[%clk 0:01:51.4]} 23...
Kh8 {[%clk 0:01:24.7]} 24. Rfg2 {[%clk 0:01:50.5]} 24... g6 {[%clk 0:01:24.7]}
25. Bd3 {[%clk 0:01:47.4]} 25... Raa8 {[%clk 0:01:20.3]} 26. f5 {[%clk
0:01:46.7]} 26... g5 {[%clk 0:01:15.1]} 27. Re1 {[%clk 0:01:36.9]} 27... N8h7
{[%clk 0:01:15.3]} 28. e4 {[%clk 0:01:35.9]} 28... dxe4 {[%clk 0:01:08.8]} 29.
fxe4 {[%clk 0:01:37.8]} 29... Rad8 {[%clk 0:01:07.2]} 30. e5 {[%clk 0:01:35.5]}
30... Nd5 {[%clk 0:01:05.5]} 31. f6 {[%clk 0:01:34.2]} 31... Qe6 {[%clk
0:01:04.6]} 32. Bb1 {[%clk 0:01:28.5]} 32... Nf8 {[%clk 0:00:39.5]} 33. Qd1
{[%clk 0:01:19.5]} 33... Ng6 {[%clk 0:00:34.5]} 34. Qh5 {[%clk 0:01:18.4]} 34...
Kh7 {[%clk 0:00:35.6]} 35. Bxg5 {[%clk 0:01:17.2]} 1-0

[Event "*** Titled Tuesday Blitz"]
[Site "Chess.com"]
[Date "2018.10.02"]
[Round "2"]
[White "severomorskij"]
[Black "jncool68"]
[Result "0-1"]
[WhiteElo "2695"]
[BlackElo "2681"]
[TimeControl "180+2"]
[EndTime "13:21:28 PDT"]
[Termination "jncool68 won by resignation"]

1. d4 {[%clk 0:03:00.2]} 1... Nf6 {[%clk 0:03:00.4]} 2. c4 {[%clk 0:03:00.9]}
2... e6 {[%clk 0:02:59.2]} 3. Nc3 {[%clk 0:02:59.7]} 3... Bb4 {[%clk 0:02:59.9]}
4. Nf3 {[%clk 0:03:00.8]} 4... Nc6 {[%clk 0:02:52]} 5. Qc2 {[%clk 0:02:44.2]}
5... d6 {[%clk 0:02:50.6]} 6. Bd2 {[%clk 0:02:34.4]} 6... Qe7 {[%clk 0:02:51]}
7. a3 {[%clk 0:02:34.8]} 7... Bxc3 {[%clk 0:02:50.2]} 8. Bxc3 {[%clk 0:02:36]}
8... e5 {[%clk 0:02:44.5]} 9. d5 {[%clk 0:02:36.2]} 9... Nb8 {[%clk 0:02:44.8]}
10. e4 {[%clk 0:02:36.8]} 10... Bg4 {[%clk 0:02:43.1]} 11. Nd2 {[%clk
0:02:36.5]} 11... a5 {[%clk 0:02:37.8]} 12. f3 {[%clk 0:02:36.6]} 12... Bd7
{[%clk 0:02:37.3]} 13. b4 {[%clk 0:02:34.2]} 13... axb4 {[%clk 0:02:35.2]} 14.
axb4 {[%clk 0:02:36.1]} 14... Rxa1+ {[%clk 0:02:36]} 15. Bxa1 {[%clk 0:02:38]}
15... O-O {[%clk 0:02:36.8]} 16. c5 {[%clk 0:02:29.1]} 16... Na6 {[%clk
0:02:35.2]} 17. Bxa6 {[%clk 0:02:25.7]} 17... bxa6 {[%clk 0:02:35.8]} 18. c6
{[%clk 0:02:20.3]} 18... Bc8 {[%clk 0:02:36.9]} 19. O-O {[%clk 0:02:15.5]} 19...
Nh5 {[%clk 0:02:37.9]} 20. Nc4 {[%clk 0:01:51.5]} 20... f5 {[%clk 0:02:35.9]}
21. Bc3 {[%clk 0:01:41.1]} 21... fxe4 {[%clk 0:02:32.6]} 22. Qxe4 {[%clk
0:01:31.7]} 22... Nf4 {[%clk 0:02:26.8]} 23. Rd1 {[%clk 0:01:05.4]} 23... Bf5
{[%clk 0:01:52.3]} 24. Qe1 {[%clk 0:00:38.9]} 24... Bc2 {[%clk 0:01:52.2]} 25.
Rd2 {[%clk 0:00:36.1]} 25... Bb3 {[%clk 0:01:47.3]} 26. Ne3 {[%clk 0:00:35.8]}
26... Qf7 {[%clk 0:01:48.5]} 27. h3 {[%clk 0:00:12.7]} 27... Bxd5 {[%clk
0:01:44.8]} 28. Rc2 {[%clk 0:00:10.6]} 28... Be6 {[%clk 0:01:42.6]} 29. Bb2
{[%clk 0:00:10.7]} 29... Qg6 {[%clk 0:01:43.2]} 30. Kh2 {[%clk 0:00:11]} 30...
Nxh3 {[%clk 0:01:36.2]} 31. gxh3 {[%clk 0:00:06.7]} 31... Rxf3 {[%clk
0:01:36.4]} 32. Rg2 {[%clk 0:00:07.6]} 32... Rxh3+ {[%clk 0:01:36.2]} 33. Kg1
{[%clk 0:00:08.8]} 33... Qh5 {[%clk 0:01:36.8]} 34. Nf1 {[%clk 0:00:08.9]} 34...
Bd5 {[%clk 0:01:33.3]} 35. Rh2 {[%clk 0:00:04.4]} 35... Qg4+ {[%clk 0:01:28.9]}
36. Kf2 {[%clk 0:00:05.5]} 36... Qf3+ {[%clk 0:01:27.1]} 0-1